Cogmind - Beta 10 @@@ ROGUE MODE // 2020.09.20 @ 15:25:46 Player: Tmvn Result: Destroyed by S-27 Virus with Autogun Performance ------------- Evolutions (1) 500 Regions Visited (5) 1000 Robots Destroyed (12) 60 Value Destroyed (219) 219 Prototype IDs (0) 0 Alien Tech Used (0) 0 Bonus (600) 600 TOTAL SCORE: 2379 Bonus ------- Met Imprinter 300 Was Imprinted 300 Cogmind --------- Core Integrity 0/400 Matter 244/300 Energy 99/100 System Corruption 0% Temperature Cool (0) Movement Core (50) Location -6/Proximity Caves Parts ------- > --- POWER (1) -------- (None) > --- PROPULSION (3) --- (None) > --- UTILITY (3) ------ (None) > --- WEAPON (2) ------- (None) > --- INVENTORY (4) ---- Compact Wheel Tactical Coordination Suite Makeshift Armor Plating Phasing AFG Peak State ------------ > --- POWER ------------ Light Ion Engine > --- PROPULSION ------- Hover Unit Hover Unit Hover Unit > --- UTILITY ---------- Large Storage Unit Weight Redist. System Hacking Suite > --- WEAPON ----------- Flak Cannon CR-A16's Pointy Stick > --- INVENTORY -------- Light Ion Engine Compact Wheel Compact Wheel Compact Wheel Tactical Coordination Suite Makeshift Armor Plating Mobile Refinery Mk. CCLXVII Phasing AFG Electrolaser Battle Cannon [Rating: 20] Favorites ----------- Power Light Ion Engine Engine Light Ion Engine Propulsion Hover Unit Leg Aluminum Leg Wheel Compact Wheel Hover Unit Hover Unit Utility Large Storage Unit Device Weight Redist. System Storage Large Storage Unit Hackware Hacking Suite Weapon Flak Cannon Energy Gun EM Pulse Gun Energy Cannon Light EM Pulse Cannon Ballistic Gun Light Assault Rifle Ballistic Cannon Flak Cannon Piercing Weapon CR-A16's Pointy Stick Build | -11 -10 -9 -9 -7 -6 ------- Run | Scr Mat Mat Min Zio Pro Slots Evolved 2 | . . 2 . . . Power . | . . . . . . Propulsion 1 | . . 1 . . . Utility 1 | . . 1 . . . Weapon . | . . . . . . Parts Attached 19 | . 4 3 6 1 5 Power 3 | . . . 2 . 1 Engine 3 | . . . 2 . 1 Core . | . . . . . . Reactor . | . . . . . . Propulsion 7 | . 2 1 2 . 2 Treads . | . . . . . . Leg . | . . . . . . Wheel 2 | . . . . . 2 Hover 5 | . 2 1 2 . . Flight . | . . . . . . Utility 3 | . 2 1 . . . Device 1 | . . 1 . . . Storage 1 | . 1 . . . . Processor . | . . . . . . Hackware 1 | . 1 . . . . Protection . | . . . . . . Artifact . | . . . . . . Weapon 6 | . . 1 2 1 2 Energy Gun 1 | . . . . . 1 Energy Cannon 1 | . . 1 . . . Ballistic Gun 1 | . . . 1 . . Ballistic Cannon 2 | . . . 1 . 1 Launcher . | . . . . . . Special Weapon . | . . . . . . Impact Weapon . | . . . . . . Slashing Weapon . | . . . . . . Piercing Weapon 1 | . . . . 1 . Special Melee Weapon . | . . . . . . Unidentified Prototypes . | . . . . . . Parts Lost 15 | . . 2 2 . 11 Power 3 | . . . 1 . 2 Propulsion 7 | . . 1 1 . 5 Utility 1 | . . . . . 1 Weapon 4 | . . 1 . . 3 Highest Loss Streak 11 | . . 2 2 . 11 Average Slot Usage (%) 95 | . 91 95 92 100 54 Engine 10 | . 14 11 11 11 5 Leg 1 | . 21 . . . . Hover 29 | . 5 33 32 33 14 Device 9 | . . 7 11 11 6 Storage 10 | . 14 11 11 11 6 Hackware 10 | . 7 11 11 11 6 Energy Gun 1 | . 14 3 . . . Ballistic Gun 2 | . 14 11 11 . . Ballistic Cannon 8 | . . . 4 11 7 Piercing Weapon 7 | . . . . 10 4 Naked Turns 68 | . . . . . 68 Heaviest Build 28 | 10 22 24 26 28 28 Greatest Support 24 | 20 20 24 18 24 24 Greatest Overweight (x) 7 | . 7 1 1 1 6 Average Overweight (x) . | . . . 1 1 . Largest Inventory Capacity 12 | 6 12 10 10 10 10 Average Capacity 9 | 6 8 10 10 10 7 Most Carried 10 | 6 7 9 10 10 10 Average Carried 8 | 4 3 7 7 9 6 Final Capacity 10 | 6 10 10 10 10 4 Final Carried 10 | 2 7 9 10 10 4 Class Distribution -------------------- 100% | Mutant Dominant Class ---------------- Mutant | -10/Materials Mutant | -9/Materials Mutant | -9/Mines Mutant | -7/Zion Mutant | -6/Proximity Caves Resources | -11 -10 -9 -9 -7 -6 ----------- Run | Scr Mat Mat Min Zio Pro Matter Collected 428 | 200 13 66 139 10 . Remotely . | . . . . . . Salvage Created 372 | . 57 100 215 . . Parts 27 | . 6 7 14 . . Haulers Intercepted 1 | . . 1 . . . Recyclers Shooed 2 | . . 2 . . . Parts Field Recycled . | . . . . . . Retrieved Matter . | . . . . . . Parts Self-Destructed 3 | . . . . 3 . Prevented . | . . . . . . Kills | -11 -10 -9 -9 -7 -6 ------- Run | Scr Mat Mat Min Zio Pro Combat Hostiles Destroyed 8 | . 1 1 6 . . Guns 2 | . 1 . 1 . . Cannons 6 | . . 1 5 . . Classes Destroyed 5 | . 2 1 2 . . Hauler 1 | . . 1 . . . Recycler 2 | . . . 2 . . Operator 1 | . 1 . . . . Swarmer 4 | . . . 4 . . Grunt 4 | . 1 1 2 . . Best Kill Streak 8 | . 1 1 8 . . Combat Bots Only 6 | . 1 1 6 . . Max Kills in Single Turn 1 | . 1 1 1 . . Gunslinging . | . . . . . . Exploded . | . . . . . . Melee . | . . . . . . Uniques/NPCs Destroyed . | . . . . . . Combat | -11 -10 -9 -9 -7 -6 -------- Run | Scr Mat Mat Min Zio Pro Damage Taken 1530 | . . 162 219 . 1149 Core 411 | . . . 28 . 383 Absorbed by Shields . | . . . . . . Core Remaining (%) 100 | 100 100 . . . . Volleys Fired 32 | . 3 10 12 . 7 Largest 2 | . 2 2 2 . 2 Hottest 107 | . 60 76 64 . 107 Shots Fired 62 | . 6 20 24 . 12 Gun 35 | . 6 15 12 . 2 Cannon 27 | . . 5 12 . 10 Launcher . | . . . . . . Special . | . . . . . . Kinetic 47 | . 3 10 24 . 10 Thermal 2 | . . . . . 2 Explosive . | . . . . . . Electromagnetic 13 | . 3 10 . . . Robot Hit Streak 8 | . 2 5 8 . 8 Robot Miss Streak 8 | . 1 3 5 . 8 Penetration Max . | . . . . . . Secondary Targets . | . . . . . . Shots Hit Robots 45 | . 3 11 20 . 11 Core Hits 30 | . 2 5 19 . 4 Critical Hits . | . . . . . . Critical Kills . | . . . . . . Critical Parts Destroyed . | . . . . . . Melee Attacks 1 | . . . . . 1 Impact . | . . . . . . Slashing . | . . . . . . Piercing 1 | . . . . . 1 Sneak Attacks . | . . . . . . Combat Hostiles . | . . . . . . Follow-up Attacks . | . . . . . . Damage Inflicted 666 | . 33 223 247 . 163 Guns 201 | . 33 84 68 . 16 Cannons 394 | . . 100 179 . 115 Explosions . | . . . . . . Melee 32 | . . . . . 32 Ramming 39 | . . 39 . . . Kinetic 407 | . . 45 247 . 115 Thermal 16 | . . . . . 16 Explosive . | . . . . . . Electromagnetic 172 | . 33 139 . . . Impact . | . . . . . . Slashing . | . . . . . . Piercing 32 | . . . . . 32 Highest Corruption . | . . . . . . Average Corruption . | . . . . . . Corruption Purged . | . . . . . . Overload Shots . | . . . . . . Overflow Damage . | . . . . . . Projectiles . | . . . . . . Explosions . | . . . . . . Melee . | . . . . . . Knockbacks 13 | . . . 6 . 7 Impact . | . . . . . . Kinetic 10 | . . . 4 . 6 Secondary 3 | . . . 2 . 1 Self-Inflicted Damage 18 | . . 18 . . . Shots . | . . . . . . Rammed 5 | . . 5 . . . Targets Rammed 5 | . . 5 . . . Kicked . | . . . . . . Crushed . | . . . . . . Highest Temperature 278 | . 20 42 105 . 278 Average Temperature 82 | . 13 21 55 . 174 Received Heat Transfer 558 | . . 60 69 . 429 Effects 2 | . . . . . 2 Interference 2 | . . . . . 2 Siege Activations . | . . . . . . Robots Corrupted . | . . . . . . Combat Hostiles . | . . . . . . Parts Fried . | . . . . . . Impact Corruptions . | . . . . . . Robots Melted . | . . . . . . Combat Hostiles . | . . . . . . Parts Melted . | . . . . . . Heat Transferred 37 | . . . . . 37 Parts Sabotaged . | . . . . . . Parts Stolen . | . . . . . . Parts Stripped . | . . . . . . Power Chain Reactions . | . . . . . . Missiles Intercepted . | . . . . . . Alert | -11 -10 -9 -9 -7 -6 ------- Run | Scr Mat Mat Min Zio Pro Peak Influence 174 | . 55 124 174 . . Initial 44 | . . 22 44 . . Average 58 | . 43 54 79 . . Maximum Alert Level . | . . . . . . Low Security (%) 100 | 100 100 100 100 . . Level 1 . | . . . . . . Level 2 . | . . . . . . Level 3 . | . . . . . . Level 4 . | . . . . . . Level 5 . | . . . . . . High Security . | . . . . . . Max Security . | . . . . . . Squads Dispatched 2 | . 1 1 . . . Investigation . | . . . . . . Extermination . | . . . . . . Reinforcement 2 | . 1 1 . . . Assault . | . . . . . . Garrison . | . . . . . . Intercept . | . . . . . . Construction Impeded . | . . . . . . Haulers Reinforced . | . . . . . . Stealth | -11 -10 -9 -9 -7 -6 --------- Run | Scr Mat Mat Min Zio Pro Distress Signals 2 | . . 2 . . . Communications Jammed . | . . . . . . Distress Signals . | . . . . . . Times Spotted 39 | . 4 12 10 . 13 Peak Tracking Total 8 | . 3 8 6 . 8 Tactical Retreats 5 | . . 1 1 . 3 Traps | -11 -10 -9 -9 -7 -6 ------- Run | Scr Mat Mat Min Zio Pro Traps Triggered . | . . . . . . Indirectly . | . . . . . . Trap Hack Attempts . | . . . . . . Triggered . | . . . . . . Disarmed . | . . . . . . Reprogrammed . | . . . . . . Reused . | . . . . . . Traps Extracted . | . . . . . . Installed . | . . . . . . Triggered . | . . . . . . Machines | -11 -10 -9 -9 -7 -6 ---------- Run | Scr Mat Mat Min Zio Pro Machines Disabled . | . . . . . . Max in Single Turn . | . . . . . . Machines Sabotaged . | . . . . . . Garrisons Compromised . | . . . . . . Overloaded Fab Kills . | . . . . . . Fab Network Shutdowns . | . . . . . . Hacking | -11 -10 -9 -9 -7 -6 --------- Run | Scr Mat Mat Min Zio Pro Machines Accessed 2 | . 1 . . 1 . Terminals 1 | . 1 . . . . Fabricators . | . . . . . . Repair Stations . | . . . . . . Recycling Units . | . . . . . . Scanalyzers . | . . . . . . Garrison Access . | . . . . . . Total Hacks 6 | . 1 . . 5 . Successful 5 | . . . . 5 . Failed 1 | . 1 . . . . Catastrophic . | . . . . . . Database Lockouts . | . . . . . . Manual 1 | . . . . 1 . Terminals 1 | . 1 . . . . Fabricators . | . . . . . . Repair Stations . | . . . . . . Recycling Units . | . . . . . . Scanalyzers . | . . . . . . Garrison Access . | . . . . . . Terminal Hacks 5 | . . . . 5 . Part Schematic 5 | . . . . 5 . Fabricator Hacks . | . . . . . . Repair Station Hacks . | . . . . . . Recycling Unit Hacks . | . . . . . . Scanalyzer . | . . . . . . Garrison Access Hacks . | . . . . . . Unauthorized Hacks . | . . . . . . Terminals . | . . . . . . Fabricators . | . . . . . . Repair Stations . | . . . . . . Recycling Units . | . . . . . . Scanalyzers . | . . . . . . Garrison Access . | . . . . . . Data Cores Recovered . | . . . . . . Used . | . . . . . . Hacking Detections . | . . . . . . Full Trace Events . | . . . . . . Feedback Events . | . . . . . . Feedback Blocked . | . . . . . . Robot Schematics Acquired . | . . . . . . Robots Built . | . . . . . . Matter . | . . . . . . Time . | . . . . . . Total Robot Build Rating . | . . . . . . Part Schematics Acquired 5 | . . . . 5 . Parts Built . | . . . . . . Matter . | . . . . . . Time . | . . . . . . Total Part Build Rating . | . . . . . . Parts Repaired . | . . . . . . Time . | . . . . . . Parts Recycled . | . . . . . . Recycled Matter . | . . . . . . Retrieved Matter . | . . . . . . Retrieved Components . | . . . . . . Parts Scanalyzed . | . . . . . . Part Schematics Acquired . | . . . . . . Parts Damaged . | . . . . . . Bothacking | -11 -10 -9 -9 -7 -6 ------------ Run | Scr Mat Mat Min Zio Pro Used RIF Installer . | . . . . . . Robots Hacked . | . . . . . . Non-combat . | . . . . . . Combat . | . . . . . . Robot Hacks Applied . | . . . . . . Relay Couplers Released . | . . . . . . Robots Rewired . | . . . . . . Allies Hacked . | . . . . . . Hacks Repelled . | . . . . . . Allies | -11 -10 -9 -9 -7 -6 -------- Run | Scr Mat Mat Min Zio Pro Total Allies 4 | . . . . 4 . Largest Group 4 | . . . . 4 . Highest-Rated Group 149 | . . . . 149 . Highest-Rated Ally 38 | . . . . 38 . Total Orders . | . . . . . . Ally Attacks . | . . . . . . Total Damage . | . . . . . . Kills . | . . . . . . Allies Corrupted . | . . . . . . Allies Melted . | . . . . . . Intel | -11 -10 -9 -9 -7 -6 ------- Run | Scr Mat Mat Min Zio Pro Robot Analysis Total . | . . . . . . Derelict Logs Recovered 2 | . . . 1 1 . Drone Launches . | . . . . . . Drone Recoveries . | . . . . . . Exploration | -11 -10 -9 -9 -7 -6 ------------- Run | Scr Mat Mat Min Zio Pro Turns Passed 2434 | 32 164 139 222 1711 166 Spaces Moved 2118 | 26 108 115 160 1520 189 Core 137 | . 1 . . . 136 Treads . | . . . . . . Legs 111 | 26 85 . . . . Wheels 1 | . . . . . 1 Hover 1869 | . 22 115 160 1520 52 Flight . | . . . . . . Fastest Speed 50 | 120 116 52 112 112 50 Average Speed 107 | 120 133 79 112 112 68 Slowest Speed 400 | 120 400 116 112 112 350 Overloaded Moves . | . . . . . . Propulsion Burnouts . | . . . . . . Robots Hopped . | . . . . . . Cave-ins Triggered . | . . . . . . Exploration Rate (%) 37 | 3 26 19 36 92 46 Regions Visited 5 Branch Regions 3 Pre-discovered Areas 1 | . . . . 1 . Known Exits Taken . | . . . . . . Unknown Exits Taken 5 | 1 1 1 1 1 . Scrap Searched 2 | . . . . 2 . Spaces Dug . | . . . . . . Terrain Destroyed . | . . . . . . Melee . | . . . . . . Projectile . | . . . . . . AOE . | . . . . . . Terrain Rammed . | . . . . . . Walls Destroyed . | . . . . . . Machines Disabled . | . . . . . . Actions | -11 -10 -9 -9 -7 -6 --------- Run | Scr Mat Mat Min Zio Pro Total 2220 | 29 123 145 180 1531 212 Wait 13 | . . 6 . . 7 Move 2114 | 25 107 115 159 1519 189 Hop . | . . . . . . Pick Up 16 | . 4 4 3 5 . Fast Attach 7 | . 4 2 . 1 . Attach 10 | . . 1 4 . 5 Detach 5 | . 3 1 . . 1 Swap 2 | . . . 2 . . Drop 16 | 4 2 2 . 6 2 Fire 32 | . 3 10 12 . 7 Melee 1 | . . . . . 1 Ram 4 | . . 4 . . . Kick . | . . . . . . Crush . | . . . . . . Escape Stasis . | . . . . . . Rewire . | . . . . . . Trap . | . . . . . . Miscellaneous . | . . . . . . Route ------- -11/Scrapyard -10/Materials -9/Materials -9/Mines -7/Zion -6/Proximity Caves History --------- Turn | Location | Event 1 | -11/Scrapyard | Discovered new exit (range 3) 33 | -11/Scrapyard | Entered Materials 147 | -10/Materials | Discovered new exit (range 15) 197 | -10/Materials | Entered another Materials area 197 | -9/Materials | Evolved 2 slots: Propulsion x1, Utility x1 304 | -9/Materials | Build established: Mutant 332 | -9/Materials | Discovered new exit (range 3) 336 | -9/Materials | Entered Mines 351 | -9/Mines | Learned 4 Materials zone layouts 369 | -9/Mines | Met a Derelict bent on vengeance 552 | -9/Mines | A Derelict revealed a hidden shortcut to a safe place 558 | -9/Mines | Entered Zion 599 | -7/Zion | Found CR-A16's Pointy Stick 707 | -7/Zion | Learned location of Armory (-4) 717 | -7/Zion | Given A8's code to call for help 890 | -7/Zion | Learned Factory security intel 1330 | -7/Zion | Found Prototype Device 1424 | -7/Zion | Found Prototype Device 1770 | -7/Zion | Imprinted 1772 | -7/Zion | Declared Zion's savior 2250 | -7/Zion | Discovered new exit (range 12) 2269 | -7/Zion | Entered Proximity Caves 2368 | -6/Proximity Caves | Core integrity fell below 50% 2392 | -6/Proximity Caves | Core integrity fell below 20% 2396 | -6/Proximity Caves | Lost 11 parts (2p5n1u3w) 2408 | -6/Proximity Caves | Attracted the attention of an 0b10 checkpoint 2435 | -6/Proximity Caves | Destroyed by S-27 Virus with Autogun Last Messages --------------- G-67 Veteran knocked back. G-50 Soldier knocked back. Electrolaser destroyed. Hover Unit destroyed. G-50 Soldier knocked back. Hover Unit destroyed. Lgt. Ion Engine destroyed. G-50 Soldier knocked back. Lgt. Ion Engine destroyed. Com. Wheel destroyed. Flak Cannon destroyed. Overheating: System interference. Weight Redist. System temporarily disabled. G-50 Soldier knocked back. Com. Wheel destroyed. Weight Redist. System destroyed. Battle Cannon destroyed. Discarded Hacking Suite. Dropped Lrg. Storage Unit. Y-54 Guardian: "INTERCEPTING UNREGISTERED DERELICT." Map ----- +----------------------------------------------------+ | ?????????????????????????????????????????????????? | | ?????????????????????????????????????????????????? | | ?????????????????????????????????????????????????? | | ?????????????????????????????????????????????????? | | ?????????????????????????????????????????????????? | | ?????????????????????????????????????????????????? | | ?????????????????????????????????????????????????? | | ?????????????????????????????????????????????????? | | ?????????????????????????????????????????????????? | | ?????????????????????????????????????????????????? | | ?????????????????????????????????????????????????? | | ?????????????????????????????????????????????????? | | ?????????????????????????????????????????????????? | | ?????????????????????????????????????????????????? | | ?????????????????????????????????????????????????? | | ?????????????????????????????????????????????????? | | ?????????????????????????????????????????????????? | | ?????????????????????????????????????????????????? | | ?????????????????????????????????????????????????? | | ?????????????????????????????????????????????????? | | ?????????????????????????????????????????????????? | | ?????????????????????????????????????????????????? | | ?????????????????????????????????????????????????? | | ?????#######??#######?###????????????????????????? | | ????##" ##?# ### ###### #???????????? | | ???##"" #?# @ #????????????? | | ???#"""" ### ## #####???????????????? | | ??????#" ## #???????????????????? | | ??????## #???????????????????? | | ??????# ##### #???????????????????? | | ?????## #???# #??????????????????? | | ###?## #??# #?????????????????? | | ### #??# ????????????????? | | ####??## ???????????????? | | ##??????## ??????????????? | | ## ####????????# s ?????????????? | | ?####???????????## s ?????????????? | | ?????????????????## s ## ??????????????? | | ??????????????????## ####?##????????????????? | | ???????????????????# ##??????????????????????? | | #???????????????????# #????????????????????????? | | #????????????????????? ??????????????????????????? | | #????????????????????????????????????????????????? | | #????????????????????????????????????????????????? | | #????????????????????????????????????????????????? | | ????????????????????????????????????????????????? | | ????????????????????????????????????????????????? | | ?????????????????????????????????????????????????? | | ?????????????????????????????????????????????????? | | ?????????????????????????????????????????????????? | +----------------------------------------------------+ Best States ------------- Heat Dissipation 28 Energy Generation 10 Energy Capacity 125 Matter Stores 300 Matter Capacity 300 Sight Range 16 Terrain Scan Density 10 Additional Mass Support 6 Evasion (%) 54 Offensive Hacking 10 Item Schematics ----------------- Beamcaster | -7/Zion | Free Riot Gun | -7/Zion | Free Battle Rifle | -7/Zion | Free Battle Cannon | -7/Zion | Free Slug Cannon | -7/Zion | Free Robot Schematics ------------------ None Fabricated ------------ Nothing Alien Tech Used ----------------- None Achievements -------------- None Challenges ------------ None Game ------ Seed RefineryCatalystKatana Manual? 0 Play Time 00:26:53 Cumulative 8.3 hours Start 2020.09.20 @ 15:00:26 End 2020.09.20 @ 15:25:46 Sessions 1 Manual Loads 0 Difficulty Rogue Special Mode None Game No. 20 Rogue 20 Adventurer 0 Explorer 0 Win Type - Total 0 Types 0/0/0/0/0/0/0/0/0 Lore% 12 Gallery% 20 Achievement% 21 Wizard Run 0 Options --------- ASCII 1 Keyboard 1 Movement Vi Keybinds 0 Fullscreen 2 Font 24/Terminus Map View 76x50 Tactical HUD 0 Map Filters BRIGHTNESS(90)|SATURATION(66) Filters BRIGHTNESS(90)|SATURATION(66) Steam X RUN: 8d81cc3a-f2f0-4707-a09b-814e329acb5c